[Event "Late-Titled-Tuesday-Blitz-April-30-2024"]
[Site "Chess.com"]
[Date "2024.04.30"]
[Round "1"]
[White "ahkashefi2800"]
[Black "Iuckyducky"]
[Result "1-0"]
[WhiteElo "2585"]
[BlackElo "2214"]
[TimeControl "180+1"]
[EndTime "14:06:46 PDT"]
[Termination "ahkashefi2800 won on time"]

1. d4 {[%clk 0:02:58.3]} 1... Nf6 {[%clk 0:02:57.1]} 2. Nf3 {[%clk 0:02:58.3]}
2... e6 {[%clk 0:02:57.5]} 3. g3 {[%clk 0:02:56.2]} 3... Be7 {[%clk 0:02:57.8]}
4. Bg2 {[%clk 0:02:57.1]} 4... O-O {[%clk 0:02:58.4]} 5. O-O {[%clk 0:02:58]}
5... d5 {[%clk 0:02:58.8]} 6. c4 {[%clk 0:02:57.2]} 6... c6 {[%clk 0:02:58.5]}
7. Nc3 {[%clk 0:02:57.5]} 7... Nbd7 {[%clk 0:02:58.9]} 8. a4 {[%clk 0:02:37.7]}
8... b6 {[%clk 0:02:36.6]} 9. b3 {[%clk 0:02:36.1]} 9... Ba6 {[%clk 0:02:30.3]}
10. Nd2 {[%clk 0:02:35.3]} 10... Rc8 {[%clk 0:02:28.6]} 11. Bb2 {[%clk
0:02:33.8]} 11... Re8 {[%clk 0:02:04.2]} 12. e3 {[%clk 0:02:31.6]} 12... e5
{[%clk 0:01:52.6]} 13. Re1 {[%clk 0:02:24.8]} 13... e4 {[%clk 0:01:33.2]} 14.
Rc1 {[%clk 0:02:15.8]} 14... Nf8 {[%clk 0:01:28.9]} 15. Bf1 {[%clk 0:02:10.4]}
15... Qd7 {[%clk 0:01:11.7]} 16. cxd5 {[%clk 0:02:03.8]} 16... Bxf1 {[%clk
0:01:10.8]} 17. dxc6 {[%clk 0:02:00.4]} 17... Qh3 {[%clk 0:00:58.9]} 18. Nxf1
{[%clk 0:02:00.2]} 18... Rxc6 {[%clk 0:00:56.9]} 19. Nxe4 {[%clk 0:01:51.9]}
19... Rxc1 {[%clk 0:00:13.7]} 20. Nxf6+ {[%clk 0:01:48.4]} 20... Bxf6 {[%clk
0:00:14.6]} 21. Qxc1 {[%clk 0:01:39.5]} 21... Ng6 {[%clk 0:00:15.5]} 22. Qc6
{[%clk 0:01:36.5]} 22... Rc8 {[%clk 0:00:14]} 23. Qg2 {[%clk 0:01:34.8]} 23...
Qd7 {[%clk 0:00:10.9]} 24. Rc1 {[%clk 0:01:34.2]} 24... h5 {[%clk 0:00:11]} 25.
Qf3 {[%clk 0:01:28.8]} 25... h4 {[%clk 0:00:09.6]} 26. Nd2 {[%clk 0:01:17.4]}
26... Rxc1+ {[%clk 0:00:08.8]} 27. Bxc1 {[%clk 0:01:16.8]} 27... h3 {[%clk
0:00:07.8]} 28. Nc4 {[%clk 0:01:09.3]} 28... Ne7 {[%clk 0:00:02.2]} 29. g4
{[%clk 0:01:01.5]} 29... Qc8 {[%clk 0:00:01]} 30. Qxh3 {[%clk 0:01:01.1]} 30...
a6 {[%clk 0:00:01.6]} 31. Ba3 {[%clk 0:00:59.3]} 31... Nd5 {[%clk 0:00:01.3]}
32. Qf3 {[%clk 0:00:57.3]} 32... Qc7 {[%clk 0:00:00.5]} 33. Qxd5 {[%clk
0:00:56.4]} 33... b5 {[%clk 0:00:00.3]} 34. axb5 {[%clk 0:00:57.3]} 34... axb5
{[%clk 0:00:01.2]} 35. Qxb5 {[%clk 0:00:57.5]} 35... Qc8 {[%clk 0:00:01.2]} 36.
Qf5 {[%clk 0:00:56.8]} 36... Qc7 {[%clk 0:00:01.2]} 37. Qd5 {[%clk 0:00:55.9]}
37... Qc8 {[%clk 0:00:01.3]} 38. Qxf7+ {[%clk 0:00:56]} 38... Kxf7 {[%clk
0:00:00.9]} 39. Nd6+ {[%clk 0:00:55.8]} 1-0

[Event "Late-Titled-Tuesday-Blitz-April-30-2024"]
[Site "Chess.com"]
[Date "2024.04.30"]
[Round "1"]
[White "DeTimmerman"]
[Black "PenguinPacks"]
[Result "1-0"]
[WhiteElo "2779"]
[BlackElo "2435"]
[TimeControl "180+1"]
[EndTime "14:06:48 PDT"]
[Termination "DeTimmerman won by resignation"]

1. b4 {[%clk 0:03:00.9]} 1... Nf6 {[%clk 0:02:55.8]} 2. Bb2 {[%clk 0:03:00.9]}
2... g6 {[%clk 0:02:53.2]} 3. c4 {[%clk 0:03:00.6]} 3... Bg7 {[%clk 0:02:53.3]}
4. e3 {[%clk 0:03:00.5]} 4... O-O {[%clk 0:02:51.4]} 5. a4 {[%clk 0:03:01.1]}
5... d6 {[%clk 0:02:41.1]} 6. b5 {[%clk 0:03:00.4]} 6... e5 {[%clk 0:02:40.2]}
7. Nf3 {[%clk 0:02:59.2]} 7... a6 {[%clk 0:02:40.2]} 8. Nc3 {[%clk 0:02:58.7]}
8... axb5 {[%clk 0:02:40]} 9. axb5 {[%clk 0:02:59.6]} 9... Rxa1 {[%clk
0:02:40.2]} 10. Qxa1 {[%clk 0:03:00.5]} 10... Bf5 {[%clk 0:02:36]} 11. Be2
{[%clk 0:02:59.4]} 11... Nbd7 {[%clk 0:02:35.5]} 12. O-O {[%clk 0:02:59.3]}
12... Nc5 {[%clk 0:02:35.3]} 13. d4 {[%clk 0:03:00]} 13... exd4 {[%clk
0:02:29.1]} 14. Nxd4 {[%clk 0:03:00.9]} 14... Bd3 {[%clk 0:02:21.2]} 15. Rd1
{[%clk 0:03:00.6]} 15... Bxe2 {[%clk 0:02:20.5]} 16. Ndxe2 {[%clk 0:03:01.5]}
16... Qa8 {[%clk 0:02:10.5]} 17. f3 {[%clk 0:02:52.8]} 17... Nb3 {[%clk
0:01:58.3]} 18. Qb1 {[%clk 0:02:49.9]} 18... Qa7 {[%clk 0:01:50.5]} 19. Qd3
{[%clk 0:02:37.4]} 19... Re8 {[%clk 0:01:41.6]} 20. Nd4 {[%clk 0:02:01.3]} 20...
Nc5 {[%clk 0:01:27.9]} 21. Qd2 {[%clk 0:01:56.1]} 21... Bh6 {[%clk 0:01:19.2]}
22. Re1 {[%clk 0:01:55.9]} 22... Nb3 {[%clk 0:00:48.8]} 23. Nxb3 {[%clk
0:01:27]} 23... Rxe3 {[%clk 0:00:45.9]} 24. Kf1 {[%clk 0:01:23.2]} 24... Rxf3+
{[%clk 0:00:43.2]} 25. gxf3 {[%clk 0:01:24.1]} 25... Bxd2 {[%clk 0:00:43.3]} 26.
Nxd2 {[%clk 0:01:24.7]} 26... Qd4 {[%clk 0:00:35.4]} 27. Re2 {[%clk 0:01:16.2]}
27... Qd3 {[%clk 0:00:33.4]} 28. Ke1 {[%clk 0:01:13.2]} 28... Kf8 {[%clk
0:00:27.4]} 29. Nce4 {[%clk 0:01:05.9]} 29... Nh5 {[%clk 0:00:27]} 30. Nf6
{[%clk 0:01:03.9]} 30... Nxf6 {[%clk 0:00:15.1]} 31. Bxf6 {[%clk 0:01:04.8]}
31... Qc2 {[%clk 0:00:11.9]} 32. Kf2 {[%clk 0:00:55.2]} 32... h5 {[%clk
0:00:12.5]} 33. h4 {[%clk 0:00:55]} 33... Qd3 {[%clk 0:00:12.9]} 34. Bg5 {[%clk
0:00:51.6]} 34... d5 {[%clk 0:00:12.9]} 35. cxd5 {[%clk 0:00:44.9]} 35... Qxd5
{[%clk 0:00:13.8]} 36. Ne4 {[%clk 0:00:43]} 36... Qxb5 {[%clk 0:00:13.2]} 37.
Nf6 {[%clk 0:00:43.6]} 37... Qb6+ {[%clk 0:00:10.4]} 38. Kg2 {[%clk 0:00:43.8]}
38... Kg7 {[%clk 0:00:09.7]} 39. Re8 {[%clk 0:00:43.2]} 39... Qb2+ {[%clk
0:00:10.1]} 40. Kg3 {[%clk 0:00:41.9]} 1-0

[Event "Late-Titled-Tuesday-Blitz-April-30-2024"]
[Site "Chess.com"]
[Date "2024.04.30"]
[Round "1"]
[White "Synctel"]
[Black "DishonorOnYourCow"]
[Result "0-1"]
[WhiteElo "2017"]
[BlackElo "2547"]
[TimeControl "180+1"]
[EndTime "14:06:52 PDT"]
[Termination "DishonorOnYourCow won on time"]

1. d4 {[%clk 0:02:57.1]} 1... Nf6 {[%clk 0:02:59.6]} 2. Nf3 {[%clk 0:02:46.9]}
2... g6 {[%clk 0:02:59.5]} 3. Bf4 {[%clk 0:02:39.9]} 3... Bg7 {[%clk 0:02:58.9]}
4. e3 {[%clk 0:02:38.7]} 4... d5 {[%clk 0:02:59.2]} 5. Be2 {[%clk 0:02:34.1]}
5... O-O {[%clk 0:02:59.3]} 6. O-O {[%clk 0:02:33.5]} 6... c5 {[%clk 0:02:59.6]}
7. c3 {[%clk 0:02:33.3]} 7... b6 {[%clk 0:02:59.3]} 8. Nbd2 {[%clk 0:02:19.9]}
8... Bb7 {[%clk 0:02:59.2]} 9. h3 {[%clk 0:02:15.9]} 9... Nc6 {[%clk 0:02:59.3]}
10. a4 {[%clk 0:02:10.8]} 10... Nd7 {[%clk 0:02:58.9]} 11. Bh2 {[%clk
0:02:02.3]} 11... e5 {[%clk 0:02:55.6]} 12. dxe5 {[%clk 0:01:59.8]} 12... Ndxe5
{[%clk 0:02:55.9]} 13. Nxe5 {[%clk 0:01:58.4]} 13... Nxe5 {[%clk 0:02:56.8]} 14.
Nf3 {[%clk 0:01:55.7]} 14... Nc6 {[%clk 0:02:56.6]} 15. Qc2 {[%clk 0:01:41.8]}
15... Qe7 {[%clk 0:02:53.7]} 16. Rfd1 {[%clk 0:01:36.2]} 16... Rfd8 {[%clk
0:02:52.9]} 17. Bb5 {[%clk 0:01:13.1]} 17... Rac8 {[%clk 0:02:50]} 18. Qe2
{[%clk 0:01:10.8]} 18... Na5 {[%clk 0:02:29.4]} 19. Ba6 {[%clk 0:01:04.5]} 19...
Bxa6 {[%clk 0:02:19.3]} 20. Qxa6 {[%clk 0:01:05.4]} 20... Nb3 {[%clk 0:02:12.9]}
21. Rab1 {[%clk 0:00:59.9]} 21... Qd7 {[%clk 0:01:38]} 22. Qb5 {[%clk
0:00:49.7]} 22... Na5 {[%clk 0:01:19.8]} 23. Qxd7 {[%clk 0:00:47.5]} 23... Rxd7
{[%clk 0:01:20.7]} 24. Be5 {[%clk 0:00:37.1]} 24... Nc4 {[%clk 0:01:15.2]} 25.
Bxg7 {[%clk 0:00:36.7]} 25... Kxg7 {[%clk 0:01:16.1]} 26. b3 {[%clk 0:00:31.9]}
26... Na5 {[%clk 0:01:14]} 27. Kf1 {[%clk 0:00:22.7]} 27... Kf6 {[%clk
0:01:09.1]} 28. Ke2 {[%clk 0:00:22.8]} 28... Re8 {[%clk 0:01:01.6]} 29. g4
{[%clk 0:00:20.5]} 29... h6 {[%clk 0:01:00.8]} 30. Kd3 {[%clk 0:00:17.3]} 30...
Nxb3 {[%clk 0:00:58.5]} 31. Kc2 {[%clk 0:00:17]} 31... Na5 {[%clk 0:00:57]} 32.
Nd2 {[%clk 0:00:11.5]} 32... d4 {[%clk 0:00:52.5]} 33. cxd4 {[%clk 0:00:06.6]}
33... cxd4 {[%clk 0:00:52.7]} 34. Nb3 {[%clk 0:00:05.5]} 34... Rc8+ {[%clk
0:00:50.9]} 35. Kb2 {[%clk 0:00:05.4]} 35... Nc4+ {[%clk 0:00:48.3]} 36. Ka2
{[%clk 0:00:05]} 36... d3 {[%clk 0:00:47]} 37. Nd4 {[%clk 0:00:03.6]} 37... Ne5
{[%clk 0:00:37.1]} 38. f4 {[%clk 0:00:00.6]} 38... Nc4 {[%clk 0:00:36.5]} 0-1

[Event "Late-Titled-Tuesday-Blitz-April-30-2024"]
[Site "Chess.com"]
[Date "2024.04.30"]
[Round "1"]
[White "campochess"]
[Black "ELPRIMO0O0"]
[Result "0-1"]
[WhiteElo "2168"]
[BlackElo "2567"]
[TimeControl "180+1"]
[EndTime "14:06:54 PDT"]
[Termination "ELPRIMO0O0 won by resignation"]

1. e4 {[%clk 0:02:59.4]} 1... c5 {[%clk 0:02:59.1]} 2. b4 {[%clk 0:02:57.9]}
2... b6 {[%clk 0:02:55.9]} 3. a3 {[%clk 0:02:56.3]} 3... Nc6 {[%clk 0:02:54.5]}
4. b5 {[%clk 0:02:54.4]} 4... Nd4 {[%clk 0:02:52.9]} 5. c3 {[%clk 0:02:52.5]}
5... Ne6 {[%clk 0:02:52.6]} 6. Bc4 {[%clk 0:02:46.8]} 6... Bb7 {[%clk
0:02:50.1]} 7. Qb3 {[%clk 0:02:42.8]} 7... Bxe4 {[%clk 0:02:45.8]} 8. Bxe6
{[%clk 0:02:41.6]} 8... dxe6 {[%clk 0:02:40.4]} 9. Nf3 {[%clk 0:02:32.3]} 9...
Bxf3 {[%clk 0:02:35.4]} 10. gxf3 {[%clk 0:02:30.5]} 10... Qd3 {[%clk 0:02:34.9]}
11. Rg1 {[%clk 0:02:18.1]} 11... Nf6 {[%clk 0:02:33.2]} 12. a4 {[%clk
0:02:07.7]} 12... Qxf3 {[%clk 0:02:27.6]} 13. Qd1 {[%clk 0:02:03.8]} 13... Qxd1+
{[%clk 0:02:16.9]} 14. Kxd1 {[%clk 0:02:02.8]} 14... g6 {[%clk 0:02:11.3]} 15.
d3 {[%clk 0:02:02.1]} 15... Bg7 {[%clk 0:02:10.4]} 16. Kc2 {[%clk 0:02:02.1]}
16... O-O-O {[%clk 0:02:09.7]} 17. Na3 {[%clk 0:02:00.5]} 17... Nd7 {[%clk
0:02:04.7]} 18. Bf4 {[%clk 0:01:54.1]} 18... e5 {[%clk 0:02:03.6]} 19. Be3
{[%clk 0:01:53.5]} 19... Nf6 {[%clk 0:01:54.9]} 20. a5 {[%clk 0:01:49]} 20...
Nd5 {[%clk 0:01:54.1]} 21. Bd2 {[%clk 0:01:46.8]} 21... Kb7 {[%clk 0:01:49.9]}
22. Nc4 {[%clk 0:01:46.3]} 22... Rd7 {[%clk 0:01:46.2]} 23. axb6 {[%clk
0:01:35]} 23... axb6 {[%clk 0:01:44.9]} 24. Ra3 {[%clk 0:01:25.7]} 24... Ra8
{[%clk 0:01:42.9]} 25. Rga1 {[%clk 0:01:25.2]} 25... Rxa3 {[%clk 0:01:42.1]} 26.
Nxa3 {[%clk 0:01:23.3]} 26... Nf6 {[%clk 0:01:30.8]} 27. f3 {[%clk 0:01:17.8]}
27... Ne8 {[%clk 0:01:28.6]} 28. Re1 {[%clk 0:01:17.2]} 28... Nd6 {[%clk
0:01:27]} 29. c4 {[%clk 0:01:16.8]} 29... Nf5 {[%clk 0:01:25.2]} 30. Bc3 {[%clk
0:01:11.5]} 30... Nd4+ {[%clk 0:01:23.7]} 31. Bxd4 {[%clk 0:01:08.9]} 31... Rxd4
{[%clk 0:01:24.6]} 32. Kd2 {[%clk 0:01:06.6]} 32... Bh6+ {[%clk 0:01:15.5]} 33.
Ke2 {[%clk 0:01:04.9]} 33... Rh4 {[%clk 0:01:15.9]} 34. Rh1 {[%clk 0:00:58.8]}
34... Rh3 {[%clk 0:01:15.2]} 35. Nc2 {[%clk 0:00:58.3]} 35... Bf4 {[%clk
0:01:14.5]} 36. Ne3 {[%clk 0:00:54.1]} 36... Bxe3 {[%clk 0:01:13.3]} 37. Kxe3
{[%clk 0:00:53.3]} 37... Kc7 {[%clk 0:01:13.9]} 38. Ke4 {[%clk 0:00:53.1]} 38...
Kd6 {[%clk 0:01:13.1]} 39. Ra1 {[%clk 0:00:52.5]} 39... f5+ {[%clk 0:01:03.6]}
40. Ke3 {[%clk 0:00:50.6]} 40... Rxh2 {[%clk 0:01:04.5]} 41. f4 {[%clk
0:00:50.1]} 41... Rh3+ {[%clk 0:01:03.1]} 42. Kd2 {[%clk 0:00:48.5]} 42... exf4
{[%clk 0:01:02.9]} 43. Ra7 {[%clk 0:00:47.2]} 43... Rh2+ {[%clk 0:00:58.6]} 44.
Ke1 {[%clk 0:00:45.5]} 44... e5 {[%clk 0:00:51.3]} 45. Rb7 {[%clk 0:00:44.9]}
45... e4 {[%clk 0:00:50.9]} 46. Rxb6+ {[%clk 0:00:44.3]} 46... Ke5 {[%clk
0:00:48.3]} 47. Rc6 {[%clk 0:00:38]} 47... Kd4 {[%clk 0:00:48]} 48. b6 {[%clk
0:00:37.6]} 48... Rb2 {[%clk 0:00:48.1]} 49. Rd6+ {[%clk 0:00:35]} 49... Ke3
{[%clk 0:00:47.8]} 50. dxe4 {[%clk 0:00:33.4]} 50... fxe4 {[%clk 0:00:47.3]} 0-1

[Event "Late-Titled-Tuesday-Blitz-April-30-2024"]
[Site "Chess.com"]
[Date "2024.04.30"]
[Round "1"]
[White "LeninGuerra"]
[Black "Zapateado"]
[Result "0-1"]
[WhiteElo "2659"]
[BlackElo "2392"]
[TimeControl "180+1"]
[EndTime "14:06:55 PDT"]
[Termination "Zapateado won by checkmate"]

1. e4 {[%clk 0:02:51.6]} 1... c5 {[%clk 0:02:59.8]} 2. Nf3 {[%clk 0:02:50]} 2...
g6 {[%clk 0:03:00.2]} 3. c3 {[%clk 0:02:49.1]} 3... Nf6 {[%clk 0:03:00.5]} 4.
Bd3 {[%clk 0:02:49.7]} 4... Bg7 {[%clk 0:02:58.6]} 5. O-O {[%clk 0:02:49.4]}
5... O-O {[%clk 0:02:59]} 6. h3 {[%clk 0:02:49.8]} 6... Nc6 {[%clk 0:02:58.1]}
7. Bc2 {[%clk 0:02:49.9]} 7... d5 {[%clk 0:02:58]} 8. e5 {[%clk 0:02:49.7]} 8...
Nd7 {[%clk 0:02:55.7]} 9. d4 {[%clk 0:02:50.2]} 9... cxd4 {[%clk 0:02:55.3]} 10.
cxd4 {[%clk 0:02:51.1]} 10... e6 {[%clk 0:02:53.3]} 11. a3 {[%clk 0:02:50.7]}
11... f6 {[%clk 0:02:53]} 12. exf6 {[%clk 0:02:49]} 12... Qxf6 {[%clk
0:02:53.9]} 13. Bg5 {[%clk 0:02:45.5]} 13... Qf7 {[%clk 0:02:52.7]} 14. Nc3
{[%clk 0:02:45.7]} 14... b6 {[%clk 0:02:39.3]} 15. Qd2 {[%clk 0:02:45.5]} 15...
Ba6 {[%clk 0:02:38.7]} 16. Rfe1 {[%clk 0:02:45.7]} 16... Rac8 {[%clk 0:02:32.7]}
17. Rac1 {[%clk 0:02:44.1]} 17... Na5 {[%clk 0:02:31.8]} 18. b3 {[%clk 0:02:22]}
18... Rc7 {[%clk 0:02:26.2]} 19. Na4 {[%clk 0:02:11.2]} 19... Rfc8 {[%clk
0:02:24.5]} 20. Bh4 {[%clk 0:01:57.2]} 20... Bb5 {[%clk 0:02:11.4]} 21. Ng5
{[%clk 0:01:55.2]} 21... Qf6 {[%clk 0:02:02.9]} 22. Rxe6 {[%clk 0:01:54]} 22...
Qxd4 {[%clk 0:02:01.6]} 23. Qe1 {[%clk 0:01:49.6]} 23... Qxh4 {[%clk 0:01:58.3]}
24. Re8+ {[%clk 0:01:47.3]} 24... Nf8 {[%clk 0:01:53.8]} 25. Rxc8 {[%clk
0:01:24.1]} 25... Rxc8 {[%clk 0:01:54.7]} 26. Ne6 {[%clk 0:01:12.2]} 26... Qe7
{[%clk 0:01:41.4]} 27. Nxg7 {[%clk 0:00:58.1]} 27... Qxe1+ {[%clk 0:01:38.9]}
28. Rxe1 {[%clk 0:00:59]} 28... Rxc2 {[%clk 0:01:22.9]} 29. Ne8 {[%clk
0:00:59.1]} 29... Bxe8 {[%clk 0:01:13.7]} 30. Rxe8 {[%clk 0:01:00]} 30... b5
{[%clk 0:01:00.3]} 31. b4 {[%clk 0:00:56.8]} 31... Nb3 {[%clk 0:00:46.2]} 32.
Nc5 {[%clk 0:00:55.2]} 32... Nxc5 {[%clk 0:00:45.9]} 33. bxc5 {[%clk 0:00:56.1]}
33... Rxc5 {[%clk 0:00:45.4]} 34. Re7 {[%clk 0:00:57]} 34... d4 {[%clk
0:00:41.5]} 35. Kf1 {[%clk 0:00:56.4]} 35... Rc3 {[%clk 0:00:33.1]} 36. Rxa7
{[%clk 0:00:54.7]} 36... Ne6 {[%clk 0:00:33]} 37. g3 {[%clk 0:00:54.7]} 37...
Nc5 {[%clk 0:00:31.3]} 38. Ke2 {[%clk 0:00:54.9]} 38... Rc2+ {[%clk 0:00:30.3]}
39. Kf3 {[%clk 0:00:54.5]} 39... d3 {[%clk 0:00:28.9]} 40. Ra8+ {[%clk 0:00:55]}
40... Kf7 {[%clk 0:00:28.5]} 41. Rd8 {[%clk 0:00:55.6]} 41... Ke6 {[%clk
0:00:25.6]} 42. Ke3 {[%clk 0:00:55.8]} 42... Rc3 {[%clk 0:00:23.3]} 43. Kd4
{[%clk 0:00:50.5]} 43... Rc4+ {[%clk 0:00:22.1]} 44. Ke3 {[%clk 0:00:50.2]}
44... Re4+ {[%clk 0:00:21.7]} 45. Kd2 {[%clk 0:00:50.5]} 45... Re2+ {[%clk
0:00:22.1]} 46. Kd1 {[%clk 0:00:50.3]} 46... Rxf2 {[%clk 0:00:21.6]} 47. Rb8
{[%clk 0:00:48.6]} 47... Ne4 {[%clk 0:00:21.3]} 48. Rxb5 {[%clk 0:00:48.5]}
48... Rf1# {[%clk 0:00:20.5]} 0-1

[Event "Late-Titled-Tuesday-Blitz-April-30-2024"]
[Site "Chess.com"]
[Date "2024.04.30"]
[Round "1"]
[White "GoltsevDmitry2000"]
[Black "cthulhuuu"]
[Result "1-0"]
[WhiteElo "2799"]
[BlackElo "2443"]
[TimeControl "180+1"]
[EndTime "14:06:56 PDT"]
[Termination "GoltsevDmitry2000 won on time"]

1. e4 {[%clk 0:02:58]} 1... d6 {[%clk 0:02:59.9]} 2. d4 {[%clk 0:02:57.7]} 2...
Nf6 {[%clk 0:03:00.6]} 3. Nc3 {[%clk 0:02:57.5]} 3... c6 {[%clk 0:03:01.2]} 4.
a4 {[%clk 0:02:56.8]} 4... e5 {[%clk 0:03:00.8]} 5. dxe5 {[%clk 0:02:55.9]} 5...
dxe5 {[%clk 0:03:01.7]} 6. Qxd8+ {[%clk 0:02:56.2]} 6... Kxd8 {[%clk 0:03:02.6]}
7. Nf3 {[%clk 0:02:56.9]} 7... Bb4 {[%clk 0:03:00.4]} 8. Bd2 {[%clk 0:02:51.1]}
8... Bxc3 {[%clk 0:02:47.3]} 9. Bxc3 {[%clk 0:02:52]} 9... Nxe4 {[%clk
0:02:47.5]} 10. Bxe5 {[%clk 0:02:41]} 10... Re8 {[%clk 0:02:45.7]} 11. O-O-O+
{[%clk 0:02:40.9]} 11... Nd7 {[%clk 0:02:41.9]} 12. Bd4 {[%clk 0:02:32]} 12...
f6 {[%clk 0:02:35.1]} 13. Bd3 {[%clk 0:02:26.8]} 13... Kc7 {[%clk 0:02:35.3]}
14. Rhe1 {[%clk 0:02:25.3]} 14... Nd6 {[%clk 0:02:23.1]} 15. Bxh7 {[%clk
0:02:22.1]} 15... Nb6 {[%clk 0:02:11.8]} 16. b3 {[%clk 0:02:02.5]} 16... Bg4
{[%clk 0:01:59.7]} 17. Bg6 {[%clk 0:01:52.1]} 17... Bxf3 {[%clk 0:01:41.4]} 18.
gxf3 {[%clk 0:01:49.8]} 18... Rxe1 {[%clk 0:01:31.3]} 19. Rxe1 {[%clk
0:01:50.7]} 19... Kd7 {[%clk 0:01:31.9]} 20. c4 {[%clk 0:01:45]} 20... c5 {[%clk
0:00:35.1]} 21. Bxc5 {[%clk 0:01:41.7]} 21... Rc8 {[%clk 0:00:34.1]} 22. Ba3
{[%clk 0:01:35.6]} 22... Nbxc4 {[%clk 0:00:12]} 23. bxc4 {[%clk 0:01:34.1]}
23... Rxc4+ {[%clk 0:00:12.3]} 24. Kb2 {[%clk 0:01:29.1]} 24... Rd4 {[%clk
0:00:06.7]} 25. Bxd6 {[%clk 0:01:26.1]} 25... Kxd6 {[%clk 0:00:07.6]} 26. Bc2
{[%clk 0:01:12]} 26... Rd2 {[%clk 0:00:06.1]} 27. Rf1 {[%clk 0:01:12]} 27... Kc5
{[%clk 0:00:05.8]} 28. Kc3 {[%clk 0:01:12.6]} 28... Re2 {[%clk 0:00:05.2]} 29.
Kd3 {[%clk 0:01:12]} 29... Re7 {[%clk 0:00:03.3]} 30. Rb1 {[%clk 0:01:12.4]}
30... b6 {[%clk 0:00:02.8]} 31. Rb5+ {[%clk 0:01:12.3]} 31... Kc6 {[%clk
0:00:03.3]} 32. h4 {[%clk 0:01:07]} 32... Rd7+ {[%clk 0:00:03.4]} 33. Kc3 {[%clk
0:01:07.3]} 33... Re7 {[%clk 0:00:03.8]} 34. Be4+ {[%clk 0:01:07.1]} 34... Kd6
{[%clk 0:00:03.1]} 35. h5 {[%clk 0:01:07.6]} 35... Rc7+ {[%clk 0:00:03.2]} 36.
Kd4 {[%clk 0:01:06.6]} 36... Rc1 {[%clk 0:00:03.4]} 37. a5 {[%clk 0:01:06.5]}
37... Rd1+ {[%clk 0:00:03.1]} 38. Ke3 {[%clk 0:01:06.3]} 38... Kc7 {[%clk
0:00:03.6]} 39. a6 {[%clk 0:01:04.8]} 39... Re1+ {[%clk 0:00:03.9]} 40. Kf4
{[%clk 0:01:04.5]} 40... Ra1 {[%clk 0:00:04]} 41. Bb7 {[%clk 0:01:04.8]} 41...
Ra4+ {[%clk 0:00:03.6]} 42. Kf5 {[%clk 0:01:04.6]} 42... Rh4 {[%clk 0:00:04]}
43. Kg6 {[%clk 0:01:04.7]} 43... Rh2 {[%clk 0:00:03.3]} 44. Kxg7 {[%clk
0:01:04.7]} 44... Rxf2 {[%clk 0:00:03]} 45. h6 {[%clk 0:01:05.1]} 45... Rxf3
{[%clk 0:00:01.7]} 46. Bxf3 {[%clk 0:01:04.4]} 1-0

[Event "Late-Titled-Tuesday-Blitz-April-30-2024"]
[Site "Chess.com"]
[Date "2024.04.30"]
[Round "1"]
[White "WilsonPalencia21"]
[Black "AryanTari"]
[Result "0-1"]
[WhiteElo "2509"]
[BlackElo "3005"]
[TimeControl "180+1"]
[EndTime "14:06:57 PDT"]
[Termination "AryanTari won by resignation"]

1. d4 {[%clk 0:02:54.4]} 1... d5 {[%clk 0:02:59.9]} 2. c4 {[%clk 0:02:55.3]}
2... e6 {[%clk 0:03:00.2]} 3. Nf3 {[%clk 0:02:56.2]} 3... Nf6 {[%clk 0:03:00.2]}
4. Nc3 {[%clk 0:02:56.9]} 4... h6 {[%clk 0:03:00.6]} 5. cxd5 {[%clk 0:02:56.1]}
5... exd5 {[%clk 0:03:00.9]} 6. Bf4 {[%clk 0:02:54.5]} 6... Bd6 {[%clk
0:03:00.9]} 7. e3 {[%clk 0:02:50.1]} 7... O-O {[%clk 0:02:55.9]} 8. Be2 {[%clk
0:02:44.8]} 8... Bxf4 {[%clk 0:02:51.9]} 9. exf4 {[%clk 0:02:41.5]} 9... Qd6
{[%clk 0:02:52.3]} 10. Ne5 {[%clk 0:02:36.7]} 10... c5 {[%clk 0:02:51.4]} 11.
dxc5 {[%clk 0:02:23.5]} 11... Qxc5 {[%clk 0:02:49.6]} 12. O-O {[%clk 0:02:23.3]}
12... a6 {[%clk 0:02:25.4]} 13. Rc1 {[%clk 0:02:20.7]} 13... Qd6 {[%clk
0:02:24.4]} 14. Bf3 {[%clk 0:02:19.7]} 14... Be6 {[%clk 0:02:18.3]} 15. Ne2
{[%clk 0:02:11.5]} 15... Nc6 {[%clk 0:02:12.2]} 16. Nxc6 {[%clk 0:02:07.7]}
16... bxc6 {[%clk 0:02:12.5]} 17. Qd4 {[%clk 0:02:02.7]} 17... Rfb8 {[%clk
0:02:10.2]} 18. b3 {[%clk 0:02:00.3]} 18... Nd7 {[%clk 0:02:10.2]} 19. Qd3
{[%clk 0:01:50]} 19... c5 {[%clk 0:01:50.1]} 20. Rfd1 {[%clk 0:01:40.1]} 20...
Nf6 {[%clk 0:01:46.1]} 21. f5 {[%clk 0:01:24.6]} 21... Bd7 {[%clk 0:01:34.8]}
22. Bxd5 {[%clk 0:01:22.4]} 22... Nxd5 {[%clk 0:01:22.8]} 23. Qxd5 {[%clk
0:01:21.8]} 23... Qxd5 {[%clk 0:01:23.7]} 24. Rxd5 {[%clk 0:01:21]} 24... Bb5
{[%clk 0:01:24.2]} 25. Nf4 {[%clk 0:01:05.8]} 25... c4 {[%clk 0:01:24.4]} 26.
bxc4 {[%clk 0:01:04.5]} 26... Bxc4 {[%clk 0:01:24.9]} 27. Rd2 {[%clk 0:01:01.5]}
27... Rb4 {[%clk 0:01:08.7]} 28. g3 {[%clk 0:00:58.6]} 28... Bb5 {[%clk
0:01:02.2]} 29. Nd5 {[%clk 0:00:51.5]} 29... Re4 {[%clk 0:00:58.5]} 30. Ne3
{[%clk 0:00:32.3]} 30... h5 {[%clk 0:00:52.5]} 31. h4 {[%clk 0:00:32.1]} 31...
Rae8 {[%clk 0:00:50.5]} 32. Rc7 {[%clk 0:00:31.2]} 32... Rb4 {[%clk 0:00:45.9]}
33. Rdc2 {[%clk 0:00:27.8]} 33... Bd3 {[%clk 0:00:42.4]} 34. Rc8 {[%clk
0:00:22.7]} 34... Rxc8 {[%clk 0:00:42.7]} 35. Rxc8+ {[%clk 0:00:21.9]} 35... Kh7
{[%clk 0:00:43.6]} 36. f3 {[%clk 0:00:14.6]} 36... Rb1+ {[%clk 0:00:42.2]} 37.
Kh2 {[%clk 0:00:14.4]} 37... Rb2+ {[%clk 0:00:42.9]} 38. Kh3 {[%clk 0:00:14.1]}
38... Rxa2 {[%clk 0:00:43.2]} 39. g4 {[%clk 0:00:14.1]} 39... Ra3 {[%clk
0:00:39.5]} 40. Kg3 {[%clk 0:00:11.3]} 40... Bb5 {[%clk 0:00:33.2]} 41. Rc7
{[%clk 0:00:11.1]} 41... Rxe3 {[%clk 0:00:33.1]} 0-1